fUST/lending_fUST_20240721
["ID","MTS","AMOUNT","RATE_DAILY","PERIOD"]
[332840395,1721565046614,-630.65,0.00013698,2]
[332840396,1721565046623,-1124.97,0.00013698,2]
[332840397,1721565046633,-500.0,0.00013698,2]
[332840398,1721565046642,-654.97,0.00013698,2]
[332840399,1721565046651,-500.0,0.00013698,2]
[332840400,1721565046661,-500.0,0.00013698,2]
[332840401,1721565046670,-500.0,0.00013698,2]
[332840402,1721565046679,-500.0,0.00013698,2]
[332840403,1721565046689,-500.0,0.00013698,2]
[332840404,1721565046699,-500.0,0.00013698,2]
[332840405,1721565046708,-504.28120277,0.00013698,2]
[332840406,1721565046717,-500.0,0.00013698,2]
[332840407,1721565046726,-500.0,0.00013698,2]
[332840408,1721565046735,-500.0,0.00013698,2]
[332840409,1721565046744,-500.0,0.00013698,2]
[332840410,1721565046753,-500.0,0.00013698,2]
[332840411,1721565046763,-500.0,0.00013698,2]
[332840412,1721565046772,-500.0,0.00013698,2]
[332840413,1721565046782,-500.0,0.00013698,2]
[332840414,1721565046791,-500.0,0.00013698,2]
[332840415,1721565046800,-151.0,0.00013698,2]
[332840416,1721565046809,-500.0,0.00013698,2]
[332840417,1721565046818,-500.0,0.00013698,2]
[332840418,1721565046827,-500.0,0.00013698,2]
[332840419,1721565046838,-500.0,0.00013698,2]
[332840420,1721565046847,-151.0,0.00013698,2]
[332840421,1721565046856,-500.0,0.00013698,2]
[332840422,1721565046868,-151.0,0.00013698,2]
[332840423,1721565046879,-500.0,0.00013698,2]
[332840424,1721565046888,-313.00457431,0.00013698,2]
[332840425,1721565046897,-500.0,0.00013698,2]
[332840426,1721565046906,-550.55,0.00013698,2]
[332840427,1721565046915,-181.861412,0.00013698,2]
[332840428,1721565046924,-500.0,0.00013698,2]
[332840429,1721565046933,-500.0,0.00013698,2]
[332840430,1721565046943,-500.0,0.00013698,2]
[332840431,1721565046952,-500.0,0.00013698,2]
[332840432,1721565046962,-500.0,0.00013698,2]
[332840433,1721565046971,-500.0,0.00013698,2]
[332840434,1721565046980,-500.0,0.00013698,2]
[332840435,1721565046990,-245.97837291,0.00013698,2]
[332840436,1721565047002,-713.61,0.00013698,2]
[332840437,1721565047011,-500.0,0.00013698,2]
[332840438,1721565047021,-151.0,0.00013698,2]
[332840439,1721565047030,-151.0,0.00013698,2]
[332840440,1721565047039,-2093.26,0.00013698,2]
[332840441,1721565047048,-151.0,0.00013698,2]
[332840442,1721565047057,-500.0,0.00013698,2]
[332840443,1721565047069,-288.764401,0.00013698,2]
[332840444,1721565047078,-500.0,0.00013698,2]
[332840445,1721565047088,-500.0,0.00013698,2]
[332840446,1721565047097,-500.0,0.00013698,2]
[332840447,1721565047107,-500.0,0.00013698,2]
[332840448,1721565047117,-500.0,0.00013698,2]
[332840449,1721565047127,-3202.76,0.00013698,2]
[332840450,1721565047138,-506.91,0.00013698,2]
[332840451,1721565047150,-500.0,0.00013698,2]
[332840452,1721565047163,-500.0,0.00013698,2]
[332840453,1721565047174,-500.0,0.00013698,2]
[332840454,1721565047185,-500.0,0.00013698,2]
[332840455,1721565047195,-500.0,0.00013698,2]
[332840456,1721565047205,-500.0,0.00013698,2]
[332840457,1721565047216,-500.0,0.00013698,2]
[332840458,1721565047227,-151.0,0.00013698,2]
[332840459,1721565047238,-151.0,0.00013698,2]
[332840460,1721565047249,-151.0,0.00013698,2]
[332840461,1721565047260,-405.93328028,0.00013698,2]
[332840462,1721565047270,-151.0,0.00013698,2]
[332840463,1721565047279,-151.0,0.00013698,2]
[332840464,1721565047290,-151.0,0.00013698,2]
[332840465,1721565047301,-1227.21,0.00013698,2]
[332840466,1721565047310,-151.0,0.00013698,2]
[332840467,1721565047321,-1583.81,0.00013698,2]
[332840468,1721565047333,-500.0,0.00013698,2]
[332840469,1721565047345,-520.88,0.00013698,2]
[332840470,1721565047355,-896.43,0.00013698,2]
[332840471,1721565047366,-508.74971259,0.00013698,2]
[332840472,1721565047375,-500.0,0.00013698,2]
[332840473,1721565047385,-500.0,0.00013698,2]
[332840474,1721565047395,-500.0,0.00013698,2]
[332840475,1721565047404,-274.51013578,0.00013698,2]
[332840476,1721565047424,-225.48986422,0.00013698,2]
[332840477,1721565047435,-516.03261185,0.00013698,2]
[332840478,1721565047444,-500.0,0.00013698,2]
[332840479,1721565047454,-196.57752393,0.00013698,2]
[332840495,1721565271058,197.72,0.00013678,62]
[332840670,1721566240094,-660.56311161,9.605e-05,2]
[332840671,1721566240103,-209.61899477,9.999e-05,2]
[332840672,1721566240113,-240.51585871,9.999e-05,2]
[332840673,1721566240122,-156.54596423,9.999e-05,2]
[332840674,1721566240132,-675.85382988,9.999e-05,2]
[332840675,1721566240158,-102.87352132,9.999e-05,2]
[332840676,1721566240168,-2212.5309776,0.00012622,2]
[332840677,1721566240177,-686.76026958,0.00013598,2]
[332840678,1721566240187,-196.22893072,0.00013598,2]
[332840679,1721566240199,-367.35615468,0.0001362,2]
[332840680,1721566240210,-5304.19710114,0.00013648,2]
[332840681,1721566240220,-173.062724,0.00013655,2]
[332840682,1721566240230,-212.21156,0.00013655,2]
[332840683,1721566240241,-196.2289307,0.00013667,2]
[332840684,1721566240252,-260.81975393,0.00013678,2]
[332840685,1721566240264,-3802.6421026,0.00013678,2]
[332840686,1721566240277,-1625.30319851,0.00013678,2]
[332840687,1721566240287,-3781.31705909,0.00013678,2]
[332840688,1721566240299,-583.81685434,0.00013678,2]
[332840689,1721566240309,-19440.5755278,0.00013678,2]
[332840690,1721566240320,-156.81599663,0.00013678,2]
[332840691,1721566240330,-151.0,0.0001368,2]
[332840692,1721566240341,-53500.34949086,0.00013688,2]
[332840733,1721566246352,-411.11179919,0.00013688,2]
[332840825,1721567064650,11090.80804997,0.00024,60]
[332840968,1721567432148,-191.37744587,9.8e-05,2]
[332840969,1721567432159,-191.37744587,9.899e-05,2]
[332840970,1721567432169,-178.7080763,9.998e-05,2]
[332840997,1721567440612,-121.2919237,9.998e-05,2]
[332840998,1721567440622,-300.0,9.998e-05,2]
[332840999,1721567440632,-931.37691405,9.999e-05,2]
[332841000,1721567440642,-240.47792778,9.999e-05,2]
[332841001,1721567440651,-778.7273512,9.999e-05,2]
[332841002,1721567440661,-570.96081453,9.999e-05,2]
[332841003,1721567440671,-403.6290569,9.999e-05,2]
[332841004,1721567440681,-309.18067122,9.999e-05,2]
[332841005,1721567440690,-327.67713617,9.999e-05,2]
[332841006,1721567440700,-493.63662636,9.999e-05,2]
[332841007,1721567440710,-240.51585871,9.999e-05,2]
[332841008,1721567440719,-156.54596423,9.999e-05,2]
[332841009,1721567440729,-246.95,0.00010959,2]
[332841010,1721567440738,-294.65,0.00010959,2]
[332841011,1721567440748,-245.54,0.00010959,2]
[332841012,1721567440757,-293.22,0.00010959,2]
[332841013,1721567440767,-420.0,0.00010998,2]
[332841014,1721567440777,-300.0,0.00012098,2]
[332841015,1721567440787,-367.35615468,0.00013224,2]
[332841016,1721567440797,-153.0,0.00013252,2]
[332841017,1721567440806,-5304.19710114,0.00013305,2]
[332841018,1721567440816,-153.0,0.000134,2]
[332841019,1721567440826,-620.00002994,0.00013581,2]
[332841020,1721567440836,-618.08424264,0.00013598,2]
[332841021,1721567440846,-379.41266457,0.00013598,2]
[332841022,1721567440855,-153.0,0.000136,2]
[332841023,1721567440867,-173.062724,0.00013655,2]
[332841024,1721567440879,-212.211562,0.00013655,2]
[332841025,1721567440888,-379.41266453,0.00013667,2]
[332841026,1721567440898,-238.66,0.00013678,7]
[332841027,1721567440907,-71342.42984808,0.00013688,2]
[332841041,1721567443462,-251452.71243892,0.00013688,2]
[332841042,1721567443471,-500.0,0.00013698,2]
[332841043,1721567443481,-198.90218003,0.00013698,2]
[332841047,1721567443741,-7465.5,0.00013698,2]
[332841048,1721567443750,-7465.5,0.00013698,2]
[332841049,1721567443760,-7465.5,0.00013698,2]
[332841050,1721567443769,-7465.5,0.00013698,2]
[332841051,1721567443778,-7465.5,0.00013698,2]
[332841052,1721567443788,-7465.5,0.00013698,2]
[332841053,1721567443798,-5348.68929987,0.00013698,2]
[332841263,1721567910383,173.46,0.00013678,62]
[332841370,1721568429631,-161.20408792,9.999e-05,2]
[332841371,1721568429653,-154.77557542,9.999e-05,2]
[332841372,1721568429675,-155.70429949,9.999e-05,2]
[332841373,1721568429696,-183.04523175,9.999e-05,2]
[332841374,1721568429718,-778.7273512,9.999e-05,2]
[332841375,1721568429740,-1021.4432238,9.999e-05,2]
[332841376,1721568429761,-300.0,0.00010958,2]
[332841377,1721568429783,-244.35,0.00010959,2]
[332841378,1721568429804,-203.63,0.00010959,2]
[332841379,1721568429830,-169.69,0.00010959,2]
[332841380,1721568429853,-848.46,0.00010959,2]
[332841381,1721568429876,-420.0,0.00012054,2]
[332841382,1721568429899,-3318.0974376,0.00012332,2]
[332841383,1721568429922,-471.00138968,0.00013578,2]
[332841384,1721568429944,-2107.90793482,0.0001358,2]
[332841385,1721568429966,-830.14332876,0.00013598,2]
[332841386,1721568429988,-8771.118821,0.00013608,2]
[332841387,1721568430010,-5058.53052879,0.0001361,2]
[332841392,1721568435378,-245.66657235,0.0001361,2]
[332841393,1721568435403,-2107.90793479,0.00013653,2]
[332841394,1721568435424,-367.35615468,0.00013676,2]
[332841395,1721568435446,-218.09499306,0.00013678,2]
[332841396,1721568435468,-156.81599663,0.00013678,2]
[332841397,1721568435490,-3781.31705909,0.00013678,2]
[332841398,1721568435513,-583.81685434,0.00013678,2]
[332841399,1721568435533,-3802.6421026,0.00013678,2]
[332841400,1721568435554,-1625.30319851,0.00013678,2]
[332841401,1721568435579,-19440.5755278,0.00013678,2]
[332841402,1721568435601,-151.0,0.0001368,2]
[332841403,1721568435626,-128358.09694271,0.00013688,2]
[332841523,1721568638516,-412.12621597,0.00013585,2]
[332841524,1721568638526,-1264.74476089,0.00013595,2]
[332841526,1721568638535,-1264.74476087,0.00013664,2]
[332841528,1721568638545,-91136.9759766,0.00013678,2]
[332841530,1721568638555,-45568.4879883,0.00013685,2]
[332841532,1721568638566,-1750.62058957,0.00013688,2]
[332841533,1721568638577,-260.44991916,0.00013688,2]
[332841534,1721568638587,-3781.31705909,0.00013688,2]
[332841535,1721568638596,-19440.5755278,0.00013688,2]
[332841536,1721568638607,-182273.951953,0.00013688,2]
[332841537,1721568638617,-12104.0,0.00013695,2]
[332841538,1721568638626,-2116.81070013,0.00013698,2]
[332841539,1721568638636,-7465.5,0.00013698,2]
[332841540,1721568638646,-7465.5,0.00013698,2]
[332841541,1721568638656,-7465.5,0.00013698,2]
[332841542,1721568638666,-7465.5,0.00013698,2]
[332841543,1721568638676,-7465.5,0.00013698,2]
[332841544,1721568638687,-7465.5,0.00013698,2]
[332841545,1721568638696,-7465.5,0.00013698,2]
[332841546,1721568638706,-7465.5,0.00013698,2]
[332841547,1721568638716,-7465.5,0.00013698,2]
[332841548,1721568638727,-7465.5,0.00013698,2]
[332841549,1721568638737,-7465.5,0.00013698,2]
[332841550,1721568638748,-7465.5,0.00013698,2]
[332841551,1721568638758,-7465.5,0.00013698,2]
[332841552,1721568638768,-7465.5,0.00013698,2]
[332841553,1721568638778,-7465.5,0.00013698,2]
[332841554,1721568638791,-7465.5,0.00013698,2]
[332841555,1721568638801,-7465.64341919,0.00013698,2]
[332841556,1721568638810,-500.0,0.00013698,2]
[332841557,1721568638821,-500.0,0.00013698,2]
[332841558,1721568638832,-500.0,0.00013698,2]
[332841559,1721568638843,-500.0,0.00013698,2]
[332841560,1721568638853,-500.0,0.00013698,2]
[332841561,1721568638862,-500.0,0.00013698,2]
[332841562,1721568638871,-500.0,0.00013698,2]
[332841563,1721568638881,-500.0,0.00013698,2]
[332841564,1721568638890,-500.0,0.00013698,2]
[332841565,1721568638899,-500.0,0.00013698,2]
[332841566,1721568638908,-500.0,0.00013698,2]
[332841567,1721568638917,-500.0,0.00013698,2]
[332841568,1721568638926,-390.73947296,0.00013698,2]
[332841569,1721568638940,-500.0,0.00013698,2]
[332841570,1721568638950,-503.23587098,0.00013698,2]
[332841571,1721568638959,-500.0,0.00013698,2]
[332841572,1721568638969,-683.88,0.00013698,2]
[332841573,1721568638980,-500.0,0.00013698,2]
[332841574,1721568638989,-500.0,0.00013698,2]
[332841575,1721568638999,-500.0,0.00013698,2]
[332841576,1721568639008,-500.0,0.00013698,2]
[332841577,1721568639019,-500.0,0.00013698,2]
[332841578,1721568639031,-500.0,0.00013698,2]
[332841579,1721568639046,-533.07630241,0.00013698,2]
[332841580,1721568639055,-2306.83,0.00013698,2]
[332841581,1721568639066,-500.0,0.00013698,2]
[332841582,1721568639075,-500.0,0.00013698,2]
[332841583,1721568639084,-500.0,0.00013698,2]
[332841584,1721568639092,-500.0,0.00013698,2]
[332841585,1721568639102,-500.0,0.00013698,2]
[332841586,1721568639111,-500.0,0.00013698,2]
[332841587,1721568639120,-500.0,0.00013698,2]
[332841588,1721568639128,-500.0,0.00013698,2]
[332841589,1721568639137,-500.0,0.00013698,2]
[332841590,1721568639146,-603.98157416,0.00013698,2]
[332841591,1721568639155,-550.23151362,0.00013698,2]
[332841592,1721568639165,-500.0,0.00013698,2]
[332841593,1721568639174,-504.70362065,0.00013698,2]
[332841594,1721568639183,-516.79304133,0.00013698,2]
[332841595,1721568639192,-500.0,0.00013698,2]
[332841596,1721568639201,-500.0,0.00013698,2]
[332841597,1721568639210,-503.40828399,0.00013698,2]
[332841598,1721568639219,-500.0,0.00013698,2]
[332841599,1721568639228,-500.0,0.00013698,2]
[332841600,1721568639237,-500.0,0.00013698,2]
[332841601,1721568639246,-500.0,0.00013698,2]
[332841602,1721568639255,-500.0,0.00013698,2]
[332841603,1721568639264,-500.0,0.00013698,2]
[332841604,1721568639273,-508.29011222,0.00013698,2]
[332841605,1721568639282,-515.50555293,0.00013698,2]
[332841606,1721568639292,-500.0,0.00013698,2]
[332841607,1721568639301,-500.0,0.00013698,2]
[332841608,1721568639310,-749.97,0.00013698,2]
[332841609,1721568639319,-500.0,0.00013698,2]
[332841610,1721568639328,-500.0,0.00013698,2]
[332841611,1721568639337,-522.79535084,0.00013698,2]
[332841612,1721568639346,-500.0,0.00013698,2]
[332841613,1721568639355,-500.0,0.00013698,2]
[332841614,1721568639364,-500.0,0.00013698,2]
[332841615,1721568639373,-500.0,0.00013698,2]
[332841616,1721568639383,-500.0,0.00013698,2]
[332841617,1721568639394,-500.0,0.00013698,2]
[332841618,1721568639404,-500.0,0.00013698,2]
[332841619,1721568639414,-500.0,0.00013698,2]
[332841620,1721568639423,-500.0,0.00013698,2]
[332841621,1721568639432,-500.0,0.00013698,2]
[332841622,1721568639442,-500.88670477,0.00013698,2]
[332841623,1721568639451,-500.0,0.00013698,2]
[332841624,1721568639460,-500.0,0.00013698,2]
[332841625,1721568639471,-500.0,0.00013698,2]
[332841626,1721568639481,-500.0,0.00013698,2]
[332841627,1721568639490,-289.59984985,0.00013698,2]
[332841628,1721568639499,-500.0,0.00013698,2]
[332841629,1721568639509,-500.0,0.00013698,2]
[332841630,1721568639518,-500.0,0.00013698,2]
[332841631,1721568639527,-539.84,0.00013698,2]
[332841632,1721568639537,-507.42065107,0.00013698,2]
[332841633,1721568639546,-500.0,0.00013698,2]
[332841634,1721568639555,-500.0,0.00013698,2]
[332841635,1721568639566,-2033.74,0.00013698,2]
[332841636,1721568639576,-500.0,0.00013698,2]
[332841637,1721568639585,-500.0,0.00013698,2]
[332841638,1721568639594,-500.0,0.00013698,2]
[332841639,1721568639603,-500.0,0.00013698,2]
[332841640,1721568639612,-500.0,0.00013698,2]
[332841641,1721568639622,-500.0,0.00013698,2]
[332841642,1721568639631,-210.19334527,0.00013698,2]
[332841643,1721568639641,-500.0,0.00013698,2]
[332841644,1721568639651,-500.0,0.00013698,2]
[332841645,1721568639660,-500.0,0.00013698,2]
[332841646,1721568639672,-500.0,0.00013698,2]
[332841647,1721568639683,-500.0,0.00013698,2]
[332841648,1721568639694,-500.0,0.00013698,2]
[332841649,1721568639703,-500.0,0.00013698,2]
[332841650,1721568639712,-1177.69,0.00013698,2]
[332841651,1721568639721,-500.0,0.00013698,2]
[332841652,1721568639730,-735.43,0.00013698,2]
[332841653,1721568639739,-503.38783401,0.00013698,2]
[332841654,1721568639748,-500.0,0.00013698,2]
[332841655,1721568639758,-500.0,0.00013698,2]
[332841656,1721568639767,-554.94,0.00013698,2]
[332841657,1721568639775,-500.0,0.00013698,2]
[332841658,1721568639785,-500.0,0.00013698,2]
[332841659,1721568639794,-500.0,0.00013698,2]
[332841660,1721568639803,-500.0,0.00013698,2]
[332841661,1721568639813,-549.02,0.00013698,2]
[332841662,1721568639822,-500.0,0.00013698,2]
[332841663,1721568639831,-500.0,0.00013698,2]
[332841664,1721568639840,-500.0,0.00013698,2]
[332841665,1721568639850,-543.68985196,0.00013698,2]
[332841666,1721568639859,-500.0,0.00013698,2]
[332841667,1721568639868,-500.0,0.00013698,2]
[332841668,1721568639878,-500.0,0.00013698,2]
[332841669,1721568639887,-358.86959931,0.00013698,2]
[332841672,1721568640611,-141.13040069,0.00013698,2]
[332841673,1721568640621,-685.82,0.00013698,2]
[332841674,1721568640634,-500.0,0.00013698,2]
[332841675,1721568640645,-81.07224153,0.00013698,2]
[332841676,1721568640687,-418.92775847,0.00013698,2]
[332841677,1721568640699,-500.0,0.00013698,2]
[332841678,1721568640710,-500.0,0.00013698,2]
[332841679,1721568640720,-510.57627377,0.00013698,2]
[332841680,1721568640730,-575.57,0.00013698,2]
[332841681,1721568640739,-500.0,0.00013698,2]
[332841682,1721568640748,-500.0,0.00013698,2]
[332841683,1721568640757,-1031.38,0.00013698,2]
[332841684,1721568640766,-500.0,0.00013698,2]
[332841685,1721568640776,-500.0,0.00013698,2]
[332841686,1721568640785,-500.0,0.00013698,2]
[332841687,1721568640796,-524.52769654,0.00013698,2]
[332841688,1721568640805,-500.0,0.00013698,2]
[332841689,1721568640814,-541.72015589,0.00013698,2]
[332841690,1721568640823,-500.0,0.00013698,2]
[332841691,1721568640833,-500.0,0.00013698,2]
[332841692,1721568640842,-500.0,0.00013698,2]
[332841693,1721568640851,-500.0,0.00013698,2]
[332841694,1721568640860,-500.0,0.00013698,2]
[332841695,1721568640869,-500.0,0.00013698,2]
[332841696,1721568640878,-500.0,0.00013698,2]
[332841697,1721568640887,-500.0,0.00013698,2]
[332841698,1721568640897,-500.0,0.00013698,2]
[332841699,1721568640906,-500.0,0.00013698,2]
[332841700,1721568640914,-500.0,0.00013698,2]
[332841701,1721568640923,-500.0,0.00013698,2]
[332841702,1721568640932,-500.0,0.00013698,2]
[332841703,1721568640941,-500.0,0.00013698,2]
[332841704,1721568640951,-500.0,0.00013698,2]
[332841706,1721568640959,-500.0,0.00013698,2]
[332841707,1721568640969,-513.99016088,0.00013698,2]
[332841709,1721568640978,-500.0,0.00013698,2]
[332841711,1721568640988,-500.0,0.00013698,2]
[332841713,1721568640999,-714.38,0.00013698,2]
[332841715,1721568641009,-500.0,0.00013698,2]
[332841717,1721568641018,-500.0,0.00013698,2]
[332841719,1721568641029,-500.0,0.00013698,2]
[332841721,1721568641041,-538.97931944,0.00013698,2]
[332841722,1721568641051,-500.0,0.00013698,2]
[332841724,1721568641061,-643.18344939,0.00013698,2]
[332841725,1721568641072,-500.0,0.00013698,2]
[332841726,1721568641083,-500.0,0.00013698,2]
[332841727,1721568641093,-500.70336209,0.00013698,2]
[332841728,1721568641102,-500.0,0.00013698,2]
[332841729,1721568641111,-542.51035399,0.00013698,2]
[332841730,1721568641121,-458.59404829,0.00013698,2]
[332841731,1721568641129,-505.12,0.00013698,2]
[332841732,1721568641138,-1365.28,0.00013698,2]
[332841733,1721568641148,-500.0,0.00013698,2]
[332841734,1721568641157,-501.80841656,0.00013698,2]
[332841735,1721568641166,-500.0,0.00013698,2]
[332841737,1721568641175,-500.0,0.00013698,2]
[332841739,1721568641184,-511.92893088,0.00013698,2]
[332841741,1721568641194,-500.0,0.00013698,2]
[332841742,1721568641203,-500.0,0.00013698,2]
[332841743,1721568641212,-500.0,0.00013698,2]
[332841744,1721568641222,-602.36606478,0.00013698,2]
[332841745,1721568641231,-500.0,0.00013698,2]
[332841746,1721568641241,-500.0,0.00013698,2]
[332841747,1721568641250,-647.07,0.00013698,2]
[332841748,1721568641259,-589.48,0.00013698,2]
[332841749,1721568641268,-500.0,0.00013698,2]
[332841750,1721568641277,-508.21,0.00013698,2]
[332841751,1721568641287,-500.0,0.00013698,2]
[332841752,1721568641298,-500.0,0.00013698,2]
[332841753,1721568641307,-768.59,0.00013698,2]
[332841754,1721568641317,-647.55,0.00013698,2]
[332841755,1721568641326,-360.00000002,0.00013698,2]
[332841756,1721568641336,-500.0,0.00013698,2]
[332841757,1721568641344,-500.0,0.00013698,2]
[332841758,1721568641354,-500.0,0.00013698,2]
[332841759,1721568641363,-500.0,0.00013698,2]
[332841760,1721568641372,-500.0,0.00013698,2]
[332841761,1721568641382,-500.0,0.00013698,2]
[332841762,1721568641393,-500.0,0.00013698,2]
[332841763,1721568641407,-500.0,0.00013698,2]
[332841764,1721568641616,-500.0,0.00013698,2]
[332841765,1721568641634,-953.2,0.00013698,2]
[332841766,1721568641645,-500.0,0.00013698,2]
[332841767,1721568641655,-500.0,0.00013698,2]
[332841768,1721568641664,-500.0,0.00013698,2]
[332841769,1721568641674,-500.0,0.00013698,2]
[332841770,1721568641683,-500.0,0.00013698,2]
[332841771,1721568641693,-500.0,0.00013698,2]
[332841772,1721568641703,-500.0,0.00013698,2]
[332841773,1721568641713,-500.0,0.00013698,2]
[332841774,1721568641723,-500.0,0.00013698,2]
[332841775,1721568641733,-500.0,0.00013698,2]
[332841776,1721568641743,-500.0,0.00013698,2]
[332841777,1721568641753,-236.38806006,0.00013698,2]
[332841778,1721568641762,-500.0,0.00013698,2]
[332841779,1721568641771,-500.0,0.00013698,2]
[332841780,1721568641780,-500.0,0.00013698,2]
[332841781,1721568641792,-500.0,0.00013698,2]
[332841782,1721568641802,-874.1,0.00013698,2]
[332841783,1721568641814,-500.0,0.00013698,2]
[332841784,1721568641824,-519.25,0.00013698,2]
[332841785,1721568641834,-884.66,0.00013698,2]
[332841786,1721568641846,-500.0,0.00013698,2]
[332841787,1721568641856,-1057.52,0.00013698,2]
[332841788,1721568641866,-512.12751702,0.00013698,2]
[332841789,1721568641875,-1889.7,0.00013698,2]
[332841790,1721568641884,-500.0,0.00013698,2]
[332841791,1721568641896,-511.77010146,0.00013698,2]
[332841792,1721568641906,-500.0,0.00013698,2]
[332841793,1721568641915,-500.0,0.00013698,2]
[332841794,1721568641924,-500.0,0.00013698,2]
[332841795,1721568641934,-500.0,0.00013698,2]
[332841796,1721568641943,-500.0,0.00013698,2]
[332841797,1721568641952,-1132.04,0.00013698,2]
[332841798,1721568641961,-666.49,0.00013698,2]
[332841799,1721568641971,-500.0,0.00013698,2]
[332841800,1721568641981,-668.28,0.00013698,2]
[332841801,1721568641990,-500.0,0.00013698,2]
[332841802,1721568641999,-505.78497756,0.00013698,2]
[332841803,1721568642009,-500.0,0.00013698,2]
[332841804,1721568642019,-500.0,0.00013698,2]
[332841805,1721568642027,-1624.09,0.00013698,2]
[332841806,1721568642037,-976.27,0.00013698,2]
[332841807,1721568642047,-642.19,0.00013698,2]
[332841808,1721568642056,-500.0,0.00013698,2]
[332841809,1721568642067,-552.84,0.00013698,2]
[332841810,1721568642076,-500.0,0.00013698,2]
[332841811,1721568642085,-837.86,0.00013698,2]
[332841812,1721568642094,-500.0,0.00013698,2]
[332841813,1721568642103,-275.42320099,0.00013698,2]
[332841841,1721568643499,-227.3924556,0.00013698,2]
[332841842,1721568643509,-177.03307554,0.00013698,2]
[332841843,1721568643519,-38.49841261,0.00013698,2]
[332841844,1721568643530,-461.50158739,0.00013698,2]
[332841845,1721568643540,-838.14,0.00013698,2]
[332841846,1721568643550,-500.0,0.00013698,2]
[332841847,1721568643560,-500.0,0.00013698,2]
[332841848,1721568643570,-407.94418418,0.00013698,2]
[332841849,1721568643583,-92.05581582,0.00013698,2]
[332841850,1721568643592,-2035.58,0.00013698,2]
[332841851,1721568643601,-500.0,0.00013698,2]
[332841852,1721568643611,-86.22462918,0.00013698,2]
[332841853,1721568643623,-413.77537082,0.00013698,2]
[332841854,1721568643634,-554.09,0.00013698,2]
[332841855,1721568643643,-238.56825868,0.00013698,2]
[332841856,1721568643655,-261.43174132,0.00013698,2]
[332841857,1721568643665,-226.27975641,0.00013698,2]
[332841858,1721568643677,-1101.94024359,0.00013698,2]
[332841859,1721568643687,-500.0,0.00013698,2]
[332841860,1721568643697,-500.0,0.00013698,2]
[332841861,1721568643706,-500.0,0.00013698,2]
[332841862,1721568643716,-288.27105874,0.00013698,2]
[332841863,1721568643725,-500.0,0.00013698,2]
[332841864,1721568643735,-325.25098328,0.00013698,2]
[332841865,1721568643745,-500.0,0.00013698,2]
[332841866,1721568643754,-373.62596632,0.00013698,2]
[332841867,1721568643764,-500.0,0.00013698,2]
[332841868,1721568643774,-502.53453976,0.00013698,2]
[332841869,1721568643784,-501.10459886,0.00013698,2]
[332841870,1721568643794,-636.95954295,0.00013698,2]
[332841871,1721568643804,-500.0,0.00013698,2]
[332841872,1721568643813,-500.0,0.00013698,2]
[332841873,1721568643822,-506.13,0.00013698,2]
[332841874,1721568643832,-500.0,0.00013698,2]
[332841875,1721568643841,-500.0,0.00013698,2]
[332841876,1721568643850,-273.53253815,0.00013698,2]
[332841877,1721568643860,-500.0,0.00013698,2]
[332841878,1721568643870,-500.0,0.00013698,2]
[332841879,1721568643879,-500.0,0.00013698,2]
[332841881,1721568643889,-500.0,0.00013698,2]
[332841882,1721568643899,-500.0,0.00013698,2]